[Event "Live Chess"]
[Site "Chess.com"]
[Date "2010.12.07"]
[Round "-"]
[White "hipposcottimus"]
[Black "izge"]
[Result "1-0"]
[CurrentPosition "q2k2Q1/2pr2pp/8/p1B1p3/4P3/5P1P/P1P3PK/1R6 b - -"]
[Timezone "UTC"]
[ECO "C55"]
[ECOUrl "https://www.chess.com/openings/Italian-Game-Two-Knights-Defense"]
[UTCDate "2010.12.07"]
[UTCTime "01:07:16"]
[WhiteElo "1673"]
[BlackElo "1733"]
[TimeControl "60"]
[Termination "hipposcottimus won by checkmate"]
[StartTime "01:07:16"]
[EndDate "2010.12.07"]
[EndTime "01:09:30"]
[Link "https://www.chess.com/game/live/74771542"]

1. e4 {[%clk 0:01:00]} 1... e5 {[%clk 0:01:00]} 2. Nf3 {[%clk 0:00:58.8]} 2... Nf6 {[%clk 0:00:59.7]} 3. Bc4 {[%clk 0:00:56.5]} 3... Nc6 {[%clk 0:00:58.4]} 4. Ng5 {[%clk 0:00:54.6]} 4... d5 {[%clk 0:00:57.6]} 5. exd5 {[%clk 0:00:53.7]} 5... Nxd5 {[%clk 0:00:56.8]} 6. Nxf7 {[%clk 0:00:50.7]} 6... Kxf7 {[%clk 0:00:55.5]} 7. Qf3+ {[%clk 0:00:48.9]} 7... Ke8 {[%clk 0:00:53]} 8. Bxd5 {[%clk 0:00:46.6]} 8... Qf6 {[%clk 0:00:49.8]} 9. Bxc6+ {[%clk 0:00:45.7]} 9... bxc6 {[%clk 0:00:48]} 10. Qc3 {[%clk 0:00:41.3]} 10... Bb7 {[%clk 0:00:46.2]} 11. d3 {[%clk 0:00:40.7]} 11... Bc5 {[%clk 0:00:44.7]} 12. f3 {[%clk 0:00:39.2]} 12... Bb6 {[%clk 0:00:43.3]} 13. Nd2 {[%clk 0:00:37.7]} 13... Rf8 {[%clk 0:00:38.9]} 14. Ne4 {[%clk 0:00:37.3]} 14... Qe7 {[%clk 0:00:37.1]} 15. Qd2 {[%clk 0:00:30.2]} 15... c5 {[%clk 0:00:36.2]} 16. O-O {[%clk 0:00:27.7]} 16... Bxe4 {[%clk 0:00:35.2]} 17. dxe4 {[%clk 0:00:23.9]} 17... Rd8 {[%clk 0:00:34.4]} 18. Qc3 {[%clk 0:00:22.7]} 18... Kd7 {[%clk 0:00:33.5]} 19. Kh1 {[%clk 0:00:21.1]} 19... Kc8 {[%clk 0:00:33]} 20. Be3 {[%clk 0:00:18.3]} 20... Rf6 {[%clk 0:00:30.1]} 21. b4 {[%clk 0:00:17.4]} 21... Rf7 {[%clk 0:00:28.9]} 22. bxc5 {[%clk 0:00:16.1]} 22... Bxc5 {[%clk 0:00:26]} 23. Bxc5 {[%clk 0:00:15.4]} 23... Qd7 {[%clk 0:00:25.3]} 24. Rab1 {[%clk 0:00:14.9]} 24... Qc6 {[%clk 0:00:20.7]} 25. Qb4 {[%clk 0:00:14.3]} 25... Qa8 {[%clk 0:00:18.5]} 26. Rfd1 {[%clk 0:00:12.4]} 26... Rxd1+ {[%clk 0:00:16.6]} 27. Rxd1 {[%clk 0:00:12.2]} 27... Rd7 {[%clk 0:00:15.6]} 28. Rb1 {[%clk 0:00:08.8]} 28... Qc6 {[%clk 0:00:12.1]} 29. h3 {[%clk 0:00:08]} 29... Qa8 {[%clk 0:00:11]} 30. Kh2 {[%clk 0:00:07.5]} 30... a5 {[%clk 0:00:10.4]} 31. Qa3 {[%clk 0:00:05.9]} 31... Qa6 {[%clk 0:00:08.8]} 32. Qb3 {[%clk 0:00:05.1]} 32... Kd8 {[%clk 0:00:05.2]} 33. Qb8+ {[%clk 0:00:03.8]} 33... Qc8 {[%clk 0:00:04.1]} 34. Qb3 {[%clk 0:00:02.2]} 34... Qa8 {[%clk 0:00:02.5]} 35. Qg8# {[%clk 0:00:01]} 1-0

[Event "Live Chess"]
[Site "Chess.com"]
[Date "2010.12.07"]
[Round "-"]
[White "izge"]
[Black "hipposcottimus"]
[Result "1-0"]
[CurrentPosition "1r3k2/6pp/5p2/p2R4/1p1P4/P1B3P1/1P3R1P/6K1 b - -"]
[Timezone "UTC"]
[ECO "D10"]
[ECOUrl "https://www.chess.com/openings/Slav-Defense-3.Nc3"]
[UTCDate "2010.12.07"]
[UTCTime "01:04:38"]
[WhiteElo "1742"]
[BlackElo "1662"]
[TimeControl "60"]
[Termination "izge won on time"]
[StartTime "01:04:38"]
[EndDate "2010.12.07"]
[EndTime "01:06:59"]
[Link "https://www.chess.com/game/live/74770972"]

1. d4 {[%clk 0:01:00]} 1... d5 {[%clk 0:01:00]} 2. c4 {[%clk 0:00:59.8]} 2... c6 {[%clk 0:00:59.7]} 3. Nc3 {[%clk 0:00:59.4]} 3... Nd7 {[%clk 0:00:58.8]} 4. e3 {[%clk 0:00:59.1]} 4... Ngf6 {[%clk 0:00:58.1]} 5. Nf3 {[%clk 0:00:58.8]} 5... e6 {[%clk 0:00:57.8]} 6. Bd2 {[%clk 0:00:58.3]} 6... Bb4 {[%clk 0:00:56.8]} 7. Be2 {[%clk 0:00:57.8]} 7... Bxc3 {[%clk 0:00:56.2]} 8. Bxc3 {[%clk 0:00:57.3]} 8... O-O {[%clk 0:00:54.8]} 9. Rc1 {[%clk 0:00:56.8]} 9... c5 {[%clk 0:00:53.4]} 10. cxd5 {[%clk 0:00:55.8]} 10... cxd4 {[%clk 0:00:52.2]} 11. O-O {[%clk 0:00:55.4]} 11... e5 {[%clk 0:00:50.9]} 12. exd4 {[%clk 0:00:53.9]} 12... e4 {[%clk 0:00:49.4]} 13. Ne5 {[%clk 0:00:52.2]} 13... Nxd5 {[%clk 0:00:48.2]} 14. Nxd7 {[%clk 0:00:50.3]} 14... Qxd7 {[%clk 0:00:48]} 15. f3 {[%clk 0:00:49.1]} 15... Qf5 {[%clk 0:00:46.9]} 16. fxe4 {[%clk 0:00:47.8]} 16... Qxe4 {[%clk 0:00:46.5]} 17. Bf3 {[%clk 0:00:46.4]} 17... Qf5 {[%clk 0:00:44.7]} 18. Bg4 {[%clk 0:00:39.6]} 18... Qg5 {[%clk 0:00:42.7]} 19. Bf3 {[%clk 0:00:38.5]} 19... Bd7 {[%clk 0:00:37.5]} 20. Bxd5 {[%clk 0:00:37.4]} 20... Qxd5 {[%clk 0:00:36.6]} 21. Qf3 {[%clk 0:00:34.9]} 21... Qg5 {[%clk 0:00:35.9]} 22. g3 {[%clk 0:00:32.3]} 22... Bg4 {[%clk 0:00:35.2]} 23. Qf2 {[%clk 0:00:31]} 23... Bh3 {[%clk 0:00:34.3]} 24. Rfe1 {[%clk 0:00:29.4]} 24... Rad8 {[%clk 0:00:33.6]} 25. Re3 {[%clk 0:00:27.8]} 25... Rde8 {[%clk 0:00:31.3]} 26. Rf3 {[%clk 0:00:26.8]} 26... b6 {[%clk 0:00:24.6]} 27. Rf4 {[%clk 0:00:25.1]} 27... Re7 {[%clk 0:00:17.7]} 28. Bd2 {[%clk 0:00:23.6]} 28... Rfe8 {[%clk 0:00:17.3]} 29. Rh4 {[%clk 0:00:21.2]} 29... Qf5 {[%clk 0:00:09.8]} 30. Qxf5 {[%clk 0:00:18.1]} 30... Bxf5 {[%clk 0:00:09.5]} 31. Rf4 {[%clk 0:00:16.8]} 31... Bg6 {[%clk 0:00:09.3]} 32. Bc3 {[%clk 0:00:15.4]} 32... Re2 {[%clk 0:00:08.1]} 33. Kf1 {[%clk 0:00:13.9]} 33... R2e3 {[%clk 0:00:06]} 34. Kg1 {[%clk 0:00:12.7]} 34... Re2 {[%clk 0:00:04.9]} 35. Kf1 {[%clk 0:00:11.1]} 35... R2e7 {[%clk 0:00:04.6]} 36. Rf2 {[%clk 0:00:09]} 36... f6 {[%clk 0:00:04.3]} 37. Kg1 {[%clk 0:00:08.1]} 37... Bf7 {[%clk 0:00:03.9]} 38. Rcf1 {[%clk 0:00:07.2]} 38... Bd5 {[%clk 0:00:03.6]} 39. Rf4 {[%clk 0:00:06]} 39... Rc8 {[%clk 0:00:03.1]} 40. R1f2 {[%clk 0:00:05.3]} 40... a5 {[%clk 0:00:02.8]} 41. a3 {[%clk 0:00:04.2]} 41... Rb8 {[%clk 0:00:02.5]} 42. Re4 {[%clk 0:00:03.5]} 42... b5 {[%clk 0:00:02.2]} 43. Rxe7 {[%clk 0:00:03]} 43... Kf8 {[%clk 0:00:00.5]} 44. Rd7 {[%clk 0:00:02.4]} 44... b4 {[%clk 0:00:00.2]} 45. Rxd5 {[%clk 0:00:01.8]} 1-0

[Event "Live Chess"]
[Site "Chess.com"]
[Date "2010.12.07"]
[Round "-"]
[White "hipposcottimus"]
[Black "RealQueen"]
[Result "1-0"]
[CurrentPosition "r4rk1/b2b1ppp/p3p3/4P3/2Bq1P2/1Q1p4/PN4PP/R4R1K b - -"]
[Timezone "UTC"]
[ECO "C02"]
[ECOUrl "https://www.chess.com/openings/French-Defense-Advance-Variation"]
[UTCDate "2010.12.07"]
[UTCTime "01:01:46"]
[WhiteElo "1668"]
[BlackElo "1412"]
[TimeControl "60"]
[Termination "hipposcottimus won on time"]
[StartTime "01:01:46"]
[EndDate "2010.12.07"]
[EndTime "01:03:25"]
[Link "https://www.chess.com/game/live/74770325"]

1. e4 {[%clk 0:01:00]} 1... e6 {[%clk 0:01:00]} 2. d4 {[%clk 0:00:57.9]} 2... d5 {[%clk 0:01:00]} 3. e5 {[%clk 0:00:57.4]} 3... a6 {[%clk 0:00:59]} 4. f4 {[%clk 0:00:57.1]} 4... c5 {[%clk 0:00:58.2]} 5. Nf3 {[%clk 0:00:56.3]} 5... cxd4 {[%clk 0:00:57.5]} 6. Nxd4 {[%clk 0:00:55.9]} 6... Bc5 {[%clk 0:00:56.3]} 7. c4 {[%clk 0:00:55.1]} 7... Ne7 {[%clk 0:00:53.2]} 8. Be2 {[%clk 0:00:50.5]} 8... Nbc6 {[%clk 0:00:51.1]} 9. Nxc6 {[%clk 0:00:48.9]} 9... Nxc6 {[%clk 0:00:47.6]} 10. Kf1 {[%clk 0:00:47.3]} 10... d4 {[%clk 0:00:37.7]} 11. Bd2 {[%clk 0:00:46.8]} 11... Ne7 {[%clk 0:00:29.3]} 12. b4 {[%clk 0:00:46.4]} 12... Ba7 {[%clk 0:00:26.8]} 13. c5 {[%clk 0:00:45.4]} 13... Nd5 {[%clk 0:00:24.4]} 14. Kf2 {[%clk 0:00:43.3]} 14... b6 {[%clk 0:00:21.3]} 15. Rf1 {[%clk 0:00:42.9]} 15... bxc5 {[%clk 0:00:19.8]} 16. Kg1 {[%clk 0:00:42.6]} 16... cxb4 {[%clk 0:00:17.5]} 17. Bc4 {[%clk 0:00:38.5]} 17... d3+ {[%clk 0:00:14.6]} 18. Kh1 {[%clk 0:00:38.2]} 18... Nc3 {[%clk 0:00:11.8]} 19. Bxc3 {[%clk 0:00:36.8]} 19... bxc3 {[%clk 0:00:11.3]} 20. Nxc3 {[%clk 0:00:36.5]} 20... Qd4 {[%clk 0:00:08.4]} 21. Qb3 {[%clk 0:00:36.2]} 21... Bd7 {[%clk 0:00:01.5]} 22. Nd1 {[%clk 0:00:33.2]} 22... O-O {[%clk 0:00:00.3]} 23. Nb2 {[%clk 0:00:32.2]} 1-0

[Event "Live Chess"]
[Site "Chess.com"]
[Date "2010.12.07"]
[Round "-"]
[White "hipposcottimus"]
[Black "guikerr"]
[Result "1-0"]
[CurrentPosition "2Q1kr2/p3np2/2p5/2B5/2p4p/8/PPP2PPP/3RR1K1 b - -"]
[Timezone "UTC"]
[ECO "C40"]
[ECOUrl "https://www.chess.com/openings/Kings-Pawn-Opening-Kings-Knight-McConnell-Defense-3.Bc4"]
[UTCDate "2010.12.07"]
[UTCTime "00:58:39"]
[WhiteElo "1665"]
[BlackElo "1426"]
[TimeControl "60"]
[Termination "hipposcottimus won by checkmate"]
[StartTime "00:58:39"]
[EndDate "2010.12.07"]
[EndTime "00:59:58"]
[Link "https://www.chess.com/game/live/74769634"]

1. e4 {[%clk 0:01:00]} 1... e5 {[%clk 0:01:00]} 2. Nf3 {[%clk 0:00:59.5]} 2... Qf6 {[%clk 0:00:59.3]} 3. Bc4 {[%clk 0:00:59.2]} 3... h6 {[%clk 0:00:58.7]} 4. Nc3 {[%clk 0:00:58.9]} 4... c6 {[%clk 0:00:58.4]} 5. Nd5 {[%clk 0:00:58.6]} 5... d6 {[%clk 0:00:58.1]} 6. Nxf6+ {[%clk 0:00:56.4]} 6... gxf6 {[%clk 0:00:57.8]} 7. d4 {[%clk 0:00:55.1]} 7... Bg4 {[%clk 0:00:55.6]} 8. dxe5 {[%clk 0:00:54]} 8... h5 {[%clk 0:00:55.6]} 9. Qd3 {[%clk 0:00:52.3]} 9... h4 {[%clk 0:00:52.1]} 10. exd6 {[%clk 0:00:50.1]} 10... Bxd6 {[%clk 0:00:49.8]} 11. e5 {[%clk 0:00:48.8]} 11... Nd7 {[%clk 0:00:49.3]} 12. exd6 {[%clk 0:00:47.8]} 12... Rd8 {[%clk 0:00:47.6]} 13. Be3 {[%clk 0:00:45.5]} 13... Ne5 {[%clk 0:00:46.8]} 14. Qe4 {[%clk 0:00:45]} 14... Rxd6 {[%clk 0:00:43]} 15. Nxe5 {[%clk 0:00:44.1]} 15... fxe5 {[%clk 0:00:41.7]} 16. Qxe5+ {[%clk 0:00:43.7]} 16... Ne7 {[%clk 0:00:39.2]} 17. Qxd6 {[%clk 0:00:42.6]} 17... Rf8 {[%clk 0:00:37.6]} 18. Qb8+ {[%clk 0:00:41.3]} 18... Bc8 {[%clk 0:00:31.9]} 19. O-O {[%clk 0:00:37.9]} 19... Kd7 {[%clk 0:00:30.4]} 20. Rfe1 {[%clk 0:00:37.3]} 20... b5 {[%clk 0:00:24]} 21. Rad1+ {[%clk 0:00:36.9]} 21... Ke8 {[%clk 0:00:21.2]} 22. Bc5 {[%clk 0:00:33.7]} 22... bxc4 {[%clk 0:00:20.2]} 23. Qxc8# {[%clk 0:00:32.1]} 1-0

[Event "Live Chess"]
[Site "Chess.com"]
[Date "2010.12.06"]
[Round "-"]
[White "Tommmmmm"]
[Black "hipposcottimus"]
[Result "1-0"]
[CurrentPosition "6rk/p6p/5p2/2p5/4BN2/2PP2PP/P4K2/R7 b - -"]
[Timezone "UTC"]
[ECO "C20"]
[ECOUrl "https://www.chess.com/openings/Kings-Pawn-Opening-The-Whale-Variation"]
[UTCDate "2010.12.06"]
[UTCTime "23:44:48"]
[WhiteElo "1580"]
[BlackElo "1662"]
[TimeControl "120+1"]
[Termination "Tommmmmm won on time"]
[StartTime "23:44:48"]
[EndDate "2010.12.06"]
[EndTime "23:48:23"]
[Link "https://www.chess.com/game/live/74752258"]

1. e4 {[%clk 0:02:00]} 1... e5 {[%clk 0:02:00]} 2. c4 {[%clk 0:01:59.9]} 2... c5 {[%clk 0:01:55.7]} 3. Nc3 {[%clk 0:01:59.9]} 3... d6 {[%clk 0:01:55.5]} 4. g3 {[%clk 0:02:00.2]} 4... Nf6 {[%clk 0:01:55.9]} 5. h3 {[%clk 0:01:58.2]} 5... Be6 {[%clk 0:01:51.4]} 6. d3 {[%clk 0:01:56.1]} 6... d5 {[%clk 0:01:51.6]} 7. cxd5 {[%clk 0:01:54.9]} 7... Bxd5 {[%clk 0:01:48.4]} 8. exd5 {[%clk 0:01:51.2]} 8... Nxd5 {[%clk 0:01:49]} 9. Bg2 {[%clk 0:01:40.3]} 9... Nxc3 {[%clk 0:01:41.5]} 10. bxc3 {[%clk 0:01:39.1]} 10... Nc6 {[%clk 0:01:40.7]} 11. Ne2 {[%clk 0:01:37.7]} 11... Bd6 {[%clk 0:01:39.8]} 12. O-O {[%clk 0:01:36.2]} 12... O-O {[%clk 0:01:38.8]} 13. f4 {[%clk 0:01:27]} 13... f6 {[%clk 0:01:36.6]} 14. fxe5 {[%clk 0:01:24.8]} 14... fxe5 {[%clk 0:01:28.7]} 15. Rxf8+ {[%clk 0:01:23]} 15... Qxf8 {[%clk 0:01:29]} 16. Qb3+ {[%clk 0:01:14]} 16... Kh8 {[%clk 0:01:28.3]} 17. Qxb7 {[%clk 0:01:13.2]} 17... e4 {[%clk 0:00:44]} 18. Bxe4 {[%clk 0:01:05.2]} 18... Rd8 {[%clk 0:00:35.3]} 19. Qxc6 {[%clk 0:01:00.2]} 19... Qf6 {[%clk 0:00:35.5]} 20. Bf4 {[%clk 0:00:51.7]} 20... Bxf4 {[%clk 0:00:32.4]} 21. Qxf6 {[%clk 0:00:50.5]} 21... gxf6 {[%clk 0:00:33]} 22. Nxf4 {[%clk 0:00:49.1]} 22... Rg8 {[%clk 0:00:33.8]} 23. Kf2 {[%clk 0:00:47.6]} 1-0

[Event "Live Chess"]
[Site "Chess.com"]
[Date "2010.12.06"]
[Round "-"]
[White "hipposcottimus"]
[Black "Tommmmmm"]
[Result "1-0"]
[CurrentPosition "rn2k3/p2q3r/1pp1p3/3p2p1/3Pb3/6PP/PP2NQ2/4RRK1 b q -"]
[Timezone "UTC"]
[ECO "C00"]
[ECOUrl "https://www.chess.com/openings/Pirc-Defense-Small-Center-Defense"]
[UTCDate "2010.12.06"]
[UTCTime "23:39:36"]
[WhiteElo "1671"]
[BlackElo "1569"]
[TimeControl "120+1"]
[Termination "hipposcottimus won on time"]
[StartTime "23:39:36"]
[EndDate "2010.12.06"]
[EndTime "23:43:46"]
[Link "https://www.chess.com/game/live/74751114"]

1. e4 {[%clk 0:02:00]} 1... d6 {[%clk 0:02:00]} 2. d4 {[%clk 0:01:59]} 2... e6 {[%clk 0:01:59.6]} 3. Nf3 {[%clk 0:01:58.5]} 3... h6 {[%clk 0:01:59.4]} 4. c4 {[%clk 0:01:58.3]} 4... g6 {[%clk 0:01:59.3]} 5. Nc3 {[%clk 0:01:58]} 5... Bg7 {[%clk 0:01:59.7]} 6. e5 {[%clk 0:01:58.6]} 6... d5 {[%clk 0:01:49.4]} 7. Bg5 {[%clk 0:01:54.1]} 7... hxg5 {[%clk 0:01:47]} 8. cxd5 {[%clk 0:01:52.9]} 8... exd5 {[%clk 0:01:43.6]} 9. Bb5+ {[%clk 0:01:53.1]} 9... c6 {[%clk 0:01:43.5]} 10. Bd3 {[%clk 0:01:50.2]} 10... Be6 {[%clk 0:01:38.4]} 11. O-O {[%clk 0:01:49.7]} 11... Ne7 {[%clk 0:01:37.8]} 12. Qd2 {[%clk 0:01:50.1]} 12... Nf5 {[%clk 0:01:32.2]} 13. Nxg5 {[%clk 0:01:49]} 13... Bh6 {[%clk 0:01:27.9]} 14. f4 {[%clk 0:01:28.9]} 14... Bxg5 {[%clk 0:01:19.8]} 15. Bxf5 {[%clk 0:01:29.2]} 15... Bxf5 {[%clk 0:01:14.4]} 16. fxg5 {[%clk 0:01:29.8]} 16... Rh5 {[%clk 0:01:13.3]} 17. Qe2 {[%clk 0:01:22.3]} 17... Qxg5 {[%clk 0:01:07.1]} 18. Na4 {[%clk 0:01:16.2]} 18... b6 {[%clk 0:01:02.9]} 19. Qf2 {[%clk 0:01:14.8]} 19... Qh4 {[%clk 0:00:52.2]} 20. g3 {[%clk 0:01:09.8]} 20... Qh3 {[%clk 0:00:49.5]} 21. Nc3 {[%clk 0:01:07.6]} 21... Rh7 {[%clk 0:00:46.3]} 22. Ne2 {[%clk 0:01:07.3]} 22... Be4 {[%clk 0:00:43.5]} 23. Nf4 {[%clk 0:01:06.1]} 23... Qg4 {[%clk 0:00:31.1]} 24. h3 {[%clk 0:00:52.6]} 24... Qd7 {[%clk 0:00:18.4]} 25. Rae1 {[%clk 0:00:53.2]} 25... g5 {[%clk 0:00:11.5]} 26. e6 {[%clk 0:00:49.6]} 26... fxe6 {[%clk 0:00:07.5]} 27. Ne2 {[%clk 0:00:48.8]} 1-0

[Event "Live Chess"]
[Site "Chess.com"]
[Date "2010.12.06"]
[Round "-"]
[White "CoachTal"]
[Black "hipposcottimus"]
[Result "1-0"]
[CurrentPosition "5rk1/ppp1r1pp/5q2/4N3/3P4/2PQ2B1/PP4PP/4R2K b - -"]
[Timezone "UTC"]
[ECO "C31"]
[ECOUrl "https://www.chess.com/openings/Kings-Gambit-Declined-Falkbeer-Blackburne-Attack"]
[UTCDate "2010.12.06"]
[UTCTime "23:36:19"]
[WhiteElo "1944"]
[BlackElo "1665"]
[TimeControl "60"]
[Termination "CoachTal won on time"]
[StartTime "23:36:19"]
[EndDate "2010.12.06"]
[EndTime "23:38:27"]
[Link "https://www.chess.com/game/live/74750304"]

1. e4 {[%clk 0:01:00]} 1... e5 {[%clk 0:01:00]} 2. f4 {[%clk 0:00:59.2]} 2... d5 {[%clk 0:00:57.4]} 3. Nf3 {[%clk 0:00:58.9]} 3... dxe4 {[%clk 0:00:56.5]} 4. Nxe5 {[%clk 0:00:58.5]} 4... Bd6 {[%clk 0:00:55.4]} 5. Bc4 {[%clk 0:00:58]} 5... Bxe5 {[%clk 0:00:53.7]} 6. fxe5 {[%clk 0:00:57]} 6... Be6 {[%clk 0:00:51.9]} 7. Bxe6 {[%clk 0:00:52.3]} 7... fxe6 {[%clk 0:00:51.5]} 8. O-O {[%clk 0:00:50.1]} 8... Ne7 {[%clk 0:00:48.3]} 9. c3 {[%clk 0:00:46]} 9... Ng6 {[%clk 0:00:47.9]} 10. Qe2 {[%clk 0:00:42.3]} 10... Nc6 {[%clk 0:00:47.5]} 11. Qxe4 {[%clk 0:00:40.9]} 11... Ncxe5 {[%clk 0:00:44.5]} 12. d4 {[%clk 0:00:39.4]} 12... Nf7 {[%clk 0:00:43.2]} 13. Qf3 {[%clk 0:00:37.3]} 13... O-O {[%clk 0:00:42.8]} 14. Qd3 {[%clk 0:00:32.8]} 14... Nfe5 {[%clk 0:00:39.6]} 15. Qc2 {[%clk 0:00:30.1]} 15... Ng4 {[%clk 0:00:35.5]} 16. Nd2 {[%clk 0:00:24.9]} 16... e5 {[%clk 0:00:34.7]} 17. Nf3 {[%clk 0:00:23.4]} 17... e4 {[%clk 0:00:32.1]} 18. Bg5 {[%clk 0:00:18.8]} 18... Qd7 {[%clk 0:00:21]} 19. Qxe4 {[%clk 0:00:17]} 19... Rae8 {[%clk 0:00:17.1]} 20. Qd3 {[%clk 0:00:15.7]} 20... Ne3 {[%clk 0:00:14.9]} 21. Rfe1 {[%clk 0:00:14]} 21... Nf5 {[%clk 0:00:11.2]} 22. Re5 {[%clk 0:00:10.9]} 22... Nfh4 {[%clk 0:00:07.1]} 23. Bxh4 {[%clk 0:00:09.1]} 23... Nxe5 {[%clk 0:00:06.7]} 24. Nxe5 {[%clk 0:00:07.6]} 24... Qe6 {[%clk 0:00:06]} 25. Bg3 {[%clk 0:00:05.4]} 25... Qf6 {[%clk 0:00:03.1]} 26. Re1 {[%clk 0:00:05.4]} 26... Re7 {[%clk 0:00:00.6]} 27. Kh1 {[%clk 0:00:05.4]} 1-0

[Event "Live Chess"]
[Site "Chess.com"]
[Date "2010.12.06"]
[Round "-"]
[White "hipposcottimus"]
[Black "CoachTal"]
[Result "0-1"]
[CurrentPosition "rn5q/ppk1bp2/2p1p3/2PpN3/2NPn3/1Q6/PP4Pr/R4RK1 w - -"]
[Timezone "UTC"]
[ECO "B02"]
[ECOUrl "https://www.chess.com/openings/Alekhines-Defense-Two-Pawns-Attack-3...Nb6-4.d4-d6"]
[UTCDate "2010.12.06"]
[UTCTime "23:34:02"]
[WhiteElo "1665"]
[BlackElo "1944"]
[TimeControl "60"]
[Termination "CoachTal won on time"]
[StartTime "23:34:02"]
[EndDate "2010.12.06"]
[EndTime "23:35:53"]
[Link "https://www.chess.com/game/live/74749635"]

1. e4 {[%clk 0:01:00]} 1... Nf6 {[%clk 0:01:00]} 2. e5 {[%clk 0:00:58.8]} 2... Nd5 {[%clk 0:00:59.3]} 3. c4 {[%clk 0:00:57.1]} 3... Nb6 {[%clk 0:00:58.8]} 4. d4 {[%clk 0:00:55.4]} 4... d6 {[%clk 0:00:58.3]} 5. f4 {[%clk 0:00:52.1]} 5... Bf5 {[%clk 0:00:57.4]} 6. Na3 {[%clk 0:00:49.2]} 6... d5 {[%clk 0:00:53.9]} 7. Nf3 {[%clk 0:00:46]} 7... e6 {[%clk 0:00:49.5]} 8. Be2 {[%clk 0:00:44.5]} 8... h6 {[%clk 0:00:48.3]} 9. O-O {[%clk 0:00:43.9]} 9... c6 {[%clk 0:00:47.2]} 10. c5 {[%clk 0:00:41.8]} 10... N6d7 {[%clk 0:00:45.9]} 11. Nh4 {[%clk 0:00:39.8]} 11... Bh7 {[%clk 0:00:43.7]} 12. f5 {[%clk 0:00:39.3]} 12... Be7 {[%clk 0:00:39.2]} 13. f6 {[%clk 0:00:36]} 13... gxf6 {[%clk 0:00:36.1]} 14. exf6 {[%clk 0:00:35.1]} 14... Nxf6 {[%clk 0:00:34.4]} 15. Bxh6 {[%clk 0:00:31.9]} 15... Be4 {[%clk 0:00:27.5]} 16. Bf3 {[%clk 0:00:22.7]} 16... Rxh6 {[%clk 0:00:23.4]} 17. Bxe4 {[%clk 0:00:15.4]} 17... Nxe4 {[%clk 0:00:17.9]} 18. Nf3 {[%clk 0:00:12.4]} 18... Kd7 {[%clk 0:00:16.9]} 19. Ne5+ {[%clk 0:00:11.4]} 19... Kc7 {[%clk 0:00:15.4]} 20. Qb3 {[%clk 0:00:10.7]} 20... Qh8 {[%clk 0:00:11.9]} 21. Nac4 {[%clk 0:00:09.9]} 21... Rxh2 {[%clk 0:00:10.3]} 0-1

[Event "Live Chess"]
[Site "Chess.com"]
[Date "2010.12.06"]
[Round "-"]
[White "JeeBusSS"]
[Black "hipposcottimus"]
[Result "0-1"]
[CurrentPosition "6k1/5ppp/p7/2p4P/p4p2/1n3Pb1/1P4K1/6rr w - -"]
[Timezone "UTC"]
[ECO "A00"]
[ECOUrl "https://www.chess.com/openings/Ware-Opening"]
[UTCDate "2010.12.06"]
[UTCTime "23:30:00"]
[WhiteElo "1476"]
[BlackElo "1665"]
[TimeControl "60"]
[Termination "hipposcottimus won by checkmate"]
[StartTime "23:30:00"]
[EndDate "2010.12.06"]
[EndTime "23:31:54"]
[Link "https://www.chess.com/game/live/74748656"]

1. a4 {[%clk 0:01:00]} 1... Nf6 {[%clk 0:01:00]} 2. Ra3 {[%clk 0:00:58.5]} 2... e5 {[%clk 0:00:59.6]} 3. Rb3 {[%clk 0:00:57.9]} 3... d5 {[%clk 0:00:58.5]} 4. d3 {[%clk 0:00:56]} 4... c5 {[%clk 0:00:58.1]} 5. c4 {[%clk 0:00:55.3]} 5... Be6 {[%clk 0:00:55]} 6. Rc3 {[%clk 0:00:52.1]} 6... d4 {[%clk 0:00:53.6]} 7. Rc2 {[%clk 0:00:51]} 7... a6 {[%clk 0:00:53.2]} 8. f3 {[%clk 0:00:50]} 8... b5 {[%clk 0:00:52.6]} 9. g4 {[%clk 0:00:49.4]} 9... bxa4 {[%clk 0:00:51.2]} 10. g5 {[%clk 0:00:49.1]} 10... Nh5 {[%clk 0:00:46.6]} 11. e3 {[%clk 0:00:46.6]} 11... dxe3 {[%clk 0:00:44.6]} 12. Bxe3 {[%clk 0:00:46.3]} 12... Nf4 {[%clk 0:00:44.1]} 13. Bxf4 {[%clk 0:00:45.4]} 13... exf4 {[%clk 0:00:42.8]} 14. Qe2 {[%clk 0:00:43.3]} 14... Qxg5 {[%clk 0:00:41.1]} 15. Nh3 {[%clk 0:00:40.9]} 15... Qh4+ {[%clk 0:00:39.8]} 16. Qf2 {[%clk 0:00:39.1]} 16... Be7 {[%clk 0:00:39]} 17. Qxh4 {[%clk 0:00:37.9]} 17... Bxh4+ {[%clk 0:00:38.7]} 18. Ke2 {[%clk 0:00:37.5]} 18... O-O {[%clk 0:00:36.8]} 19. Nd2 {[%clk 0:00:36.8]} 19... Re8 {[%clk 0:00:36.5]} 20. d4 {[%clk 0:00:34.4]} 20... Bxh3+ {[%clk 0:00:35.2]} 21. Ne4 {[%clk 0:00:29.6]} 21... Bf5 {[%clk 0:00:34.8]} 22. Bg2 {[%clk 0:00:26.4]} 22... Nc6 {[%clk 0:00:34]} 23. Kf1 {[%clk 0:00:25.3]} 23... Nxd4 {[%clk 0:00:32.4]} 24. Rd2 {[%clk 0:00:22.8]} 24... Nb3 {[%clk 0:00:32]} 25. Rd5 {[%clk 0:00:21.4]} 25... Bxe4 {[%clk 0:00:28.7]} 26. h3 {[%clk 0:00:16.9]} 26... Bxd5 {[%clk 0:00:26.2]} 27. cxd5 {[%clk 0:00:16.1]} 27... Rad8 {[%clk 0:00:25.8]} 28. Kg1 {[%clk 0:00:15.7]} 28... Rxd5 {[%clk 0:00:25.4]} 29. Kh2 {[%clk 0:00:15.3]} 29... Bg3+ {[%clk 0:00:23.9]} 30. Kg1 {[%clk 0:00:13]} 30... Rd1+ {[%clk 0:00:22.9]} 31. Bf1 {[%clk 0:00:12.2]} 31... Ree1 {[%clk 0:00:22.5]} 32. h4 {[%clk 0:00:11.7]} 32... Rxf1+ {[%clk 0:00:19.4]} 33. Kg2 {[%clk 0:00:11.4]} 33... Rxh1 {[%clk 0:00:18.1]} 34. h5 {[%clk 0:00:05.3]} 34... Rdg1# {[%clk 0:00:17.7]} 0-1